{"text_format":"3","workbook":"xlsx","n_sheets":2,"sheets":["Documentos","Principios"],"not_rendered":{"defined_names":2},"read":"whole","date_system":"1900"}

{"sheet":"Documentos","index":0,"n_rows":36,"n_cols":21,"rows_kept":36}
[null,"Acuerdo","Item","Fecha aprobación","Documento institucional","Objeto del documento","Transparencia","Máxima publicidad"," Buena fe","Facilitación","No discriminación","Gratuidad","Celeridad","Eficacia","Calidad de la información","Divulgación proactiva","Responsabilidad en el uso de la información.","Ética","Integridad","Participacion","Enlace"]
[null,"CS No 052",1,"2023-09-28","Política de Transparencia, Acceso a la Información Pública y Lucha contra la Corrupción","Establecer el acceso a la información y lucha contra la corrupción, como uno de los pilares institucionales, que brinde confianza a los ciudadanos mediante la promoción de una cultura de integridad, transparencia y prevención de la corrupción.","x","x","x","x","x","x","x","x","x","x","x",{"$nulls":3},"https://firebasestorage.googleapis.com/v0/b/sigunitropico.appspot.com/o/Planeacion%2FPoliticas%2FAcuerdos%2FACUERDO%20CS%20No.%20052%20DE%202023%20-%20Pol%C3%ADtica%20de%20Transparencia%2C%20Acceso%20a%20la%20Informaci%C3%B3n%20P%C3%BAblica%20y%20Lucha%20contra%20la%20Corrupci%C3%B3n.pdf?alt=media&token=8237dd9c-8d37-48ed-9427-b929b6c470fd"]
[null,"CS No 050",{"$f":"C2+1","v":2},"2023-09-28","Política de Integridad ","Implementar la Política de Integridad mediante estrategias pedagógicas y preventivas que será la base para que la Universidad Internacional del Trópico Americano promueva sus procesos de socialización y apropiación en su cotidianidad a través de la práctica de los valores y creando hábitos tanto éticos como profesionales o rutinas que permitan obtener excelentes resultados, mejorar la productividad en el\ntrabajo y generar confianza en la labor que se desarrolla como Servidores Públicos Universitarios.","x",{"$nulls":11},"x",null,"https://firebasestorage.googleapis.com/v0/b/sigunitropico.appspot.com/o/Planeacion%2FPoliticas%2FAcuerdos%2FACUERDO%20CS%20No.%20050%20DE%202023%20-%20Pol%C3%ADtica%20de%20Integridad.pdf?alt=media&token=af29eb57-8ae2-4033-a845-1823b4c43781"]
[null,"CS 079",{"$f":"C3+1","v":3},"2025-05-29","Codigo de Ética, Transparencia y Buen Gobierno","El Código de Ética, Transparencia y Buen Gobierno de la Universidad Internacional del Trópico Americano, tiene por objeto establecer un marco para el adecuado proceder y las buenas prácticas en la gestión administrativa y académica por parte de los órganos de dirección y demás personas vinculadas a la institución, en el ejercicio de sus funciones respectivas, como un compromiso genuino de autorregulación y cumplimiento de los objetivos institucionales, y la adecuada administración de los recursos, basada en los principios de probidad, eficiencia, integridad, transparencia, coherencia, ética, respeto, excelencia y la responsabilidad asumida para con su comunidad y la sociedad.","x",{"$nulls":11},"x",null,"https://drive.google.com/file/d/1j9YDG4n4nOtW75HbYucb9BAZv7DHu1W1/view"]
[null,"CS No 053",4,"2023-09-28","Política de Atención al Ciudadano","Garantizar la calidad y acceso a los servicios que provee la Universidad Internacional del Trópico Americano, incluyentes, dignos, efectivos, oportunos, claros, transparentes, imparciales y de calidad, que generen espacios de participación y acceso a la información, optimizando el nivel de satisfacción y percepción de los grupos de interés, a través de la mejora continua, la apropiación por parte de los servidores públicos de la misión, objetivos, principios y valores de la Universidad Internacional del Trópico Americano.","x",{"$nulls":8},"x",{"$nulls":4},"https://firebasestorage.googleapis.com/v0/b/sigunitropico.appspot.com/o/Planeacion%2FPoliticas%2FAcuerdos%2FACUERDO%20CS%20No.%20053%20DE%202023%20-%20Pol%C3%ADtica%20de%20Atenci%C3%B3n%20al%20Ciudadano.pdf?alt=media&token=6475704d-b3fa-47d5-b19f-2d086f38060f"]
[null,"CS No 051",5,"2023-09-28","Política de Gestión de la Información Estadística","Establecer el modelo de gestión de la información estadística institucional que potencialice el uso de los datos y la información, contribuyendo a la accesibilidad y confiabilidad de la información para la toma de decisiones en la Universidad Internacional del Trópico Americano.","x",{"$nulls":8},"x",{"$nulls":4},"https://firebasestorage.googleapis.com/v0/b/sigunitropico.appspot.com/o/Planeacion%2FPoliticas%2FAcuerdos%2FACUERDO%20CS%20No.%20051%20DE%202023%20-%20Pol%C3%ADtica%20de%20Gesti%C3%B3n%20de%20la%20Informaci%C3%B3n%20Estad%C3%ADstica.pdf?alt=media&token=5f84c44a-e785-4c16-97ee-5c45f147cd2d"]
[null,"CS No 054",6,"2023-09-28","Política de Gestión Documental","Definir los lineamientos para la administración documental en cualquier soporte, físico y/o electrónico que se genere en la Universidad Internacional del Trópico Americano, mediante la aplicación de la normatividad archivística nacional, con el propósito de cumplir con los requisitos para la producción de información, uso y mantenimiento; garantizando en todo momento la integridad, autenticidad y veracidad, bajo parámetros técnicos de organización, trámite, gestión, conservación y disposición final, soportados en los principios archivísticos.",{"$nulls":9},"x","x",{"$nulls":3},"https://firebasestorage.googleapis.com/v0/b/sigunitropico.appspot.com/o/Planeacion%2FPoliticas%2FAcuerdos%2FACUERDO%20CS%20No.%20054%20DE%202023%20-%20Pol%C3%ADtica%20de%20Gesti%C3%B3n%20Documental.pdf?alt=media&token=46042d9d-5d34-4fc6-8513-02545bc37212"]
[null,"RES-REC 312",7,"2021-09-24","Política de Control Interno","Implementar, sostener, evaluar y mejorar de manera permanente el Sistema de Control Interno, de acuerdo con lo establecido en la séptima dimensión del Modelo Integrado de Planeación y Gestión MIPG, de que trata el Decreto 1499 de 2017 y las normas que lo modifiquen o adicionen; con el objetivo de desarrollar una cultura organizacional fundamentada en la información, el control y la evaluación, para la toma de decisiones y la mejora continua, adoptando estrategias orientadas a promover el ambiente de control, la gestión del riesgo, las actividades de control, la información y comunicación y el monitoreo. ","x",{"$nulls":8},"x",{"$nulls":4},"https://drive.google.com/file/d/1GmzlwXWnkipV6l_GYyfu_nw0emYWPDAX/view"]
[null," CS No. 075 ",8,"2024-12-03","Plan de Desarrollo Institucional","Plan de Desarrollo Institucional 2024 - 2028, de la Universidad\nInternacional del Trópico Americano","x",{"$nulls":10},"x",null,"x","https://firebasestorage.googleapis.com/v0/b/sigunitropico.appspot.com/o/Planeacion%2FPDI%2Fpdi2024%2F1.%20Plan%20de%20Desarrollo%20Institucional%202024%20-2028%20122024%20FINAL%20CS.pdf?alt=media&token=30d1cf19-b152-4051-8ae2-c0216937c7a0"]
[null,"Ordenanza ",9,"Ordenanza 014-2021","Estatuto general","El objeto de la universidad internacional del Trópico Americano, Unitrópico, comprende el desarrollo local, territorial, regional y nacional, mediantela oferta de actividades de alta actividad en la academia, la investigación, la proyeccion Social, que aporten al mejoramiento de la calidad de vida de los habitantes de la entidad territorialy regional, contribuyendo al desarrollo de formacion integral a nivel Regional, Nacional, e internacional. Tiene ddentro de su compromiso fundamental la formacion integral a nivel regional y nacional e Internacional. Tiene dentro de su comproiso fundamental la formación integral, basada e la bioética, la responsabilidad social, la formacion de ciudadania, el respeto y la convivencia entre todos los miembros de la comunidad.","x",{"$nulls":10},"x",null,null,"https://drive.google.com/file/d/1JCX_7bLMvMLYACz3rXWacebHztbYDvKb/view"]
[null,"RES-REC 237",10,"2021-09-24","PEI Proyecto Educativo Institucional","Adoptar y establecer el Proyecto Educativo Institucional de la Universidad Internacional del Trópico Americano, Unitrópico. PEI","x",{"$nulls":10},"x",null,null,"https://drive.google.com/file/d/1hf9MsqfYmLHNQMP_iWPcfPob8sbof2oy/view"]
[null,"RES-REC 014",11,"2021-09-01","Reglamento Estudiantil","Establecer el Reglamento Estudiantil de la Universidad Internacional del Tropico\nAmericano Unitropico.","x",{"$nulls":13},"https://drive.google.com/file/d/1nS4iYQfj_bCPjZWPiFzOG4XxQ9VBE-pi/view"]
[null,"CS No 027",12,"2021-09-01","Reglamento Estudiantil de Posgrados","Establecer el Reglamento Estudiantil de Posgrados de la Universidad Internacional\ndel Tropico Americano, Unitropico.","x",{"$nulls":10},"x",null,null,"https://drive.google.com/file/d/1nS4iYQfj_bCPjZWPiFzOG4XxQ9VBE-pi/view"]
[null,"CS No 001",13,"2021-11-22","Reglamento Interno del Consejo Superior","Establecer la normatividad que permita el normal y adecuado funcionamiento intemo del Consejo Superior de Unitropico.","x",{"$nulls":6},"x",null,null,"x","x",null,null,"https://drive.google.com/file/d/1udoOGwCfzWcj9emHDUvO_JO7VDiQodd7/view"]
[null,"CS No 083",14,"2025-06-26","Manual General de Contratación.","objetivo establecer los principios, competencias, reglas generales y políticas institucionales que rigen la\nactividad contractual de la Universidad Internacional del Trópico Americano,  Unitrópico.","x",null,"x",{"$nulls":3},"x","x",{"$nulls":6},"https://drive.google.com/file/d/1ZKNwxdehixxc_rIBKaJHv1clk300GCoY/view"]
[null,"RES-REC 020",15,"2021-09-01","Estatuto de Bienestar universitario","Estatuto de bienestar universitario de la Universidad Internacional del Trópico Americano","x",{"$nulls":10},"x",null,null,"https://drive.google.com/file/d/1i-pvA6jmCB3QFyEbO5AdLcKJFu4T3iOg/view"]
[null,"RES-REC 021",16,"2021-09-01","Estatuto presupuestal y financiero","Estatuto presupuestal y financiero de la Universidad Internacional del Trópico Americano","x",{"$nulls":13},"https://drive.google.com/file/d/1BgJCkXhJz5CG4HZEFq4pfhJ4suMHF4UO/view"]
[null,"RES-REC 254",17,"2021-09-13","Reglamento de trabajo","Reglamento de trabajo de la Universidad Internacional del Trópico Americano","x",{"$nulls":10},"x"]
[null,"ACS- 001",18,"2021-11-22"," Reglamento Interno de Consejo Superior","Reglamento Interno de Consejo Superior de la Universidad Internacional del Trópico Americano","x",{"$nulls":10},"x",null,null,"https://drive.google.com/file/d/1udoOGwCfzWcj9emHDUvO_JO7VDiQodd7/view"]
[null,"CS No 009",19,"2022-04-28","Política de Formación Profesoral","La presente política tiene como objetivo estructurar el plan de formación profesoral e integrar los lineamientos generales del desarrollo profesoral de Unitrópico, a partir del reconocimiento de las necesidades presentes de las diferentes Facultades y Escuelas, en aras de garantizar la consolidación y sostenibilidad de un cuerpo profesoral de alta calidad. ","x",{"$nulls":10},"x",null,null,"https://firebasestorage.googleapis.com/v0/b/sigunitropico.appspot.com/o/Planeacion%2FPoliticas%2FAcuerdos%2FACUERDO%20CS%20No.%20009%20DE%202022%20-Pol%C3%ADtica%20de%20Formaci%C3%B3n%20Profesoral.pdf?alt=media&token=b07e66a6-f5d9-42b0-bb9f-ced77a779c3c"]
[null,"CS No 030",20,"2023-05-26","Política de Investigación y Convocatorias","Desarrollar una cultura de investigación, innovación, desarrollo tecnológico y creación artística y cultural\nen Unitrópico a través del fortalecimiento de las capacidades administrativas de la investigación, el\nfortalecimiento de la investigación, el fomento de la gestión de recursos externos y la evaluación de la\nproducción, divulgación y transferencia de las actividades de investigación Unitropistas.","x",{"$nulls":9},"x",null,"x",null,"https://firebasestorage.googleapis.com/v0/b/sigunitropico.appspot.com/o/Planeacion%2FPoliticas%2FAcuerdos%2FACUERDO%20CS%20No.%20030%20DE%202023%20-%20Pol%C3%ADtica%20de%20Investigaci%C3%B3n%20y%20Convocatorias.pdf?alt=media&token=19647794-d157-4a61-ab1f-08a5c4c2740f"]
[null,"CS No 031",21,"2023-05-26","Política de Autoevaluación, Autorregulación y Mejoramiento","Desarrollar una cultura de investigación, innovación, desarrollo tecnológico y creación artística y cultural en Unitrópico a través del fortalecimiento de las capacidades administrativas de la investigación, el fortalecimiento de la investigación, el fomento de la gestión de recursos externos y la evaluación de la producción, divulgación y transferencia de las actividades de investigación Unitropistas.",{"$nulls":13},"x","https://firebasestorage.googleapis.com/v0/b/sigunitropico.appspot.com/o/Planeacion%2FPoliticas%2FAcuerdos%2FACUERDO%20CS%20No.%20031%20DE%202023%20-%20Pol%C3%ADtica%20de%20Autoevaluaci%C3%B3n%2C%20Autorregulaci%C3%B3n%20y%20Mejoramiento.pdf?alt=media&token=53d61fa2-6950-46c1-9823-57cd6f864407"]
[null,"CS No 032",22,"2023-05-26","Política de Propiedad Intelectual","Establecer un marco conceptual y estratégico que guie a Unitrópico en la formulación e implementación de lineamientos y estrategias para la protección, uso y explotación de la propiedad intelectual generada en la institución con el fin de fortalecer las capacidades institucionales para la gestión de su propiedad intelectual. ",{"$nulls":11},"x",null,null,"https://firebasestorage.googleapis.com/v0/b/sigunitropico.appspot.com/o/Planeacion%2FPoliticas%2FAcuerdos%2FACUERDO%20CS%20No.%20032%20DE%202023%20-%20Pol%C3%ADtica%20de%20Propiedad%20Intelectual.pdf?alt=media&token=94d28b6c-3665-4c34-b800-57e1b56c1dc7"]
[null,"CS No 033",23,"2023-06-22","Política Académica","Establecer lineamientos institucionales para la docencia y la administración de los programas académicos, que permitan la consolidación de procesos que se fundamenten en el buen ejercicio de los actores de la academia, buscando la acertada y eficaz articulación con los ejes misionales en busca del posicionamiento regional de la institución. ",{"$nulls":10},"x",{"$nulls":3},"https://firebasestorage.googleapis.com/v0/b/sigunitropico.appspot.com/o/Planeacion%2FPoliticas%2FAcuerdos%2FACUERDO%20CS%20No.%20033%20DE%202023%20-%20Pol%C3%ADtica%20Acad%C3%A9mica.pdf?alt=media&token=276eabd9-73e8-4bcb-87b1-a5da854f25f3"]
[null,"CS No 034",24,"2023-06-22","Política de Innovación Educativa y Buenas Prácticas Pedagógicas","Consolidar una cultura permánente de reflexión pedagógica que motive las buenas prácticas pedagógicas y asegure la innoliación educativa en el desarrollo de la misión institucional. ",{"$nulls":9},"x",{"$nulls":4},"https://firebasestorage.googleapis.com/v0/b/sigunitropico.appspot.com/o/Planeacion%2FPoliticas%2FAcuerdos%2FACUERDO%20CS%20No.%20034%20DE%202023%20-%20Pol%C3%ADtica%20de%20Innovaci%C3%B3n%20Educativa%20y%20Buenas%20Pr%C3%A1cticas%20Pedag%C3%B3gicas.pdf?alt=media&token=4d58222c-3edd-4e1a-94d5-76fe26216a70"]
[null,"CS No 035",25,"2023-06-22","Política Ambiental","La Política Ambiental se aplicará en todos los estamentos de la comunidad universitaria, en las instalaciones, sedes y proveedores, en todas las actividades, procesos y servicios basados principalmente en el respeto por el ambiente y los recursos naturales, asegurando que las acciones yto decisiones están enfocadas en la prevención de la contaminación, facilitando el alcance de los objetivos ambientales y la mejora continua. ",{"$nulls":10},"x",{"$nulls":3},"https://firebasestorage.googleapis.com/v0/b/sigunitropico.appspot.com/o/Planeacion%2FPoliticas%2FAcuerdos%2FACUERDO%20CS%20No.%20035%20DE%202023%20-%20Pol%C3%ADtica%20Ambiental.pdf?alt=media&token=550b26ad-c4d6-44b9-badb-f691235697fb"]
[null,"CS No 043",{"$f":"#REF!+1","v":{"$error":"#REF!"}},"2023-08-31","Política de Educación Superior Inclusiva e Intercultural (PESII)","Construir una cultura Unitropista fundamentada en la equidad, la democracia y la solidaridad a partir de prácticas y acciones encaminadas al reconocimiento de la diversidad, la interculturalidad, la multiculturalidad y la inclusión de los grupos priorizados pertenecientes a la comunidad universitaria, garantizando, de esta manera su participación efectiva e inclusiva en todos los escenarios universitarios. ",{"$nulls":13},"x","https://firebasestorage.googleapis.com/v0/b/sigunitropico.appspot.com/o/Planeacion%2FPoliticas%2FAcuerdos%2FACUERDO%20CS%20No.%20043%20DE%202023%20-%20Pol%C3%ADtica%20de%20Educaci%C3%B3n%20Superior%20Inclusiva%20e%20Intercultural%20(PESII).pdf?alt=media&token=62de67e6-2fbd-412c-a68e-cdd0a430844d"]
[null,"CS No 044",{"$error":"#REF!"},"2023-08-31","Política Integral de Bienestar Universitario","Contribuir con el desarrollo humano integral en la construcción de una vida universitaria solidaria y la inclusión de los miembros de la comunidad Unitropista, teniendo en cuenta sus necesidades y particularidades. ",{"$nulls":11},"x",null,"x","https://firebasestorage.googleapis.com/v0/b/sigunitropico.appspot.com/o/Planeacion%2FPoliticas%2FAcuerdos%2FACUERDO%20CS%20No.%20044%20DE%202023%20-%20Pol%C3%ADtica%20Integral%20de%20Bienestar%20Universitario.pdf?alt=media&token=c537289c-1f9b-4fe4-9726-01189d609e72"]
[null,"CS No 045",{"$error":"#REF!"},"2023-08-31","Política de Proyección Social","La Política de Proyección Social de Unitrópico, es un documento fundamental y reglamentario para generar el vínculo entre la universidad y la sociedad. Busca orientar la interacción y el diálogo constante con la comunidad a partir de la articulación entre la academia y la investigación mediante acciones y estrategias previstas en la presente política con una perspectiva local, regional, nacional e internacional que persigan el cumplimiento de la misión y visión de la universidad. ",{"$nulls":11},"x",null,"x","https://firebasestorage.googleapis.com/v0/b/sigunitropico.appspot.com/o/Planeacion%2FPoliticas%2FAcuerdos%2FACUERDO%20CS%20No.%20045%20DE%202023%20-%20Pol%C3%ADtica%20de%20Proyecci%C3%B3n%20Social.pdf?alt=media&token=7d6257be-07b3-46a9-904c-17f30454442a"]
[null,"CS No 046",{"$error":"#REF!"},"2023-09-28","Política de Egresados"," La Política Institucional de Egresados es un documento fundamental y reglamentario que permitirá establecer mecanismos tendientes a mantener una comunicación fluida con los egresados, así como brindarles oportunidades de actualización académica, formación continua, acceso a servicios y beneficios exclusivos, y la posibilidad de contribuir al mejoramiento constante de la institución a través de su experiencia y conocimientos adquiridos. ",{"$nulls":13},"x","https://firebasestorage.googleapis.com/v0/b/sigunitropico.appspot.com/o/Planeacion%2FPoliticas%2FAcuerdos%2FACUERDO%20CS%20No.%20046%20DE%202023%20-%20Pol%C3%ADtica%20de%20Egresados.pdf?alt=media&token=9e1d8d5a-31f5-4ea4-8297-bc676b74d657"]
[null,"CS No 047",{"$error":"#REF!"},"2023-09-28","Política de Internacionalización","Consolidar una cultura institucional de relaciones equitativas y recíprocas entre Unitrópico y las instituciones de educación superior y las organizaciones humanas del mundo, que permitan el desarrollo conjunto y el intercambio de conocimientos y experiencias. Esta cultura debe estar fundamentada en la solidaridad y la cooperación, reconociendo las diferencias culturales, lingüísticas y epistémicas de los distintos contextos, y promoviendo un diálogo intercultural en igualdad de\ncondiciones.",{"$nulls":13},"x","https://firebasestorage.googleapis.com/v0/b/sigunitropico.appspot.com/o/Planeacion%2FPoliticas%2FAcuerdos%2FACUERDO%20CS%20No.%20047%20DE%202023%20-%20Pol%C3%ADtica%20de%20Internacionalizaci%C3%B3n.pdf?alt=media&token=3fe6d92c-8ab7-4efa-8a5c-2506e69a2cc4"]
[null,"CS No 049",{"$f":"#REF!+1","v":{"$error":"#REF!"}},"2023-09-28","Política de Incentivos y Estímulos del Personal Administrativo y Profesoral","Establecer pautas para la permanencia del personal de Unitrópico que propicien condiciones para mejorar la calidad de vida laboral y humana de los servidores públicos de Unitrópico, estimulando la eficiencia, creatividad, el mérito en el ejercicio de la función pública universitaria y su efectiva\nparticipación, a través de acciones participativas basadas en la promoción, prevención, esparcimiento e integración; estimulando el sentido de pertenencia y compromiso institucional que manifieste en los servidores, motivación y calidez humana en la prestación de servicios y que se refleje en el cumplimiento de la misión y objetivos institucionales.","x",{"$nulls":6},"x",{"$nulls":6},"https://firebasestorage.googleapis.com/v0/b/sigunitropico.appspot.com/o/Planeacion%2FPoliticas%2FAcuerdos%2FACUERDO%20CS%20No.%20049%20DE%202023-%20Pol%C3%ADtica%20de%20Incentivos%20y%20Est%C3%ADmulos%20del%20Personal%20Administrativo%20y%20Profesoral.pdf?alt=media&token=06a17d78-e63c-4bd9-ac2a-b34657094af2"]
[null,"CS No 055",{"$error":"#REF!"},"2023-09-28","Política de Comunicaciones","Crear una cultura comunicativa que promueva la apropiación del conocimiento de la identidad y filosofía institucional entre los actores que integran la comunidad universitaria y fortalezca la imagen de la\nuniversidad ante los grupos de interés.","x",{"$nulls":6},"x",{"$nulls":6},"https://firebasestorage.googleapis.com/v0/b/sigunitropico.appspot.com/o/Planeacion%2FPoliticas%2FAcuerdos%2FACUERDO%20CS%20No.%20055%20DE%202023%20-%20Pol%C3%ADtica%20de%20Comunicaciones.pdf?alt=media&token=871134c2-7b39-4e88-b382-3289a8c26d6c"]
[null,"RES-REC 255",{"$f":"#REF!+1","v":{"$error":"#REF!"}},"2021-09-13","Estatuto Disciplinario Del Personal Academico y Administrativo","Adoptar el Estatuto Disciplinario del personal Academico y Administrativo de la Universidad Internacional del Trópico Americano.","x",{"$nulls":4},"x",null,"x",{"$nulls":6},"https://drive.google.com/file/d/17ye6tcTrqC5u4wRUock-EFS66sF14zd8/view"]
[null,"RES-REC 006",{"$error":"#REF!"},"2021-09-01","Estatuto de Carrera Administrativa","Estatuto de Carrera Administrativa de la Universidad Internacional del Trópico Americano",{"$nulls":10},"x",{"$nulls":3},"https://drive.google.com/file/d/1mDyLAjoOMRNHLuCbGZ6Em2xYzlXK2U9s/view"]
[null,"RES-REC 016",{"$error":"#REF!"},"2021-09-01","Estatuto del profesor","Estatuto del profesor universitario de la Universidad Internacional del Trópico Americano",{"$nulls":10},"x",{"$nulls":3},"https://drive.google.com/file/d/1_oP62Y0jPWH1QmzCHC_9YcNVxQ9GFiU8/view"]

{"sheet":"Principios","index":1,"n_rows":18,"n_cols":2,"rows_kept":18}
[]
[]
[]
[null,"Principio"]
[1,"Transparencia"]
[{"$f":"A5+1","v":2},"Máxima publicidad para titular universal. "]
[{"$f":"A6+1","v":3},"Buena fe"]
[4,"Facilitación"]
[5,"No discriminación"]
[6,"Gratuidad"]
[7,"Celeridad"]
[8,"Eficacia"]
[9,"Calidad de la información"]
[10,"Divulgación proactiva"]
[11,"Responsabilidad "]
[12,"Ética"]
[13,"Integridad"]
[14,"Participación"]